bitfinex/quotes_ETHUSD_20251230
["timestamp","ask_amount","ask_price","bid_price","bid_amount"]
[1767117991072,2.3777,2980.5,2980.0,0.33385]
[1767117991374,2.3777,2980.5,2979.9,0.002]
[1767117991682,3.35523378,2980.5,2979.9,2.4595]
[1767117991857,2.3777,2980.4,2979.9,2.4595]
[1767117993379,2.3777,2980.4,2979.9,0.002]
[1767117993809,5.33522703,2980.2,2979.6,0.002]
[1767117994078,2.3777,2979.9,2979.4,2.4635]
[1767117995962,2.3777,2979.9,2979.6,0.002]
[1767117997182,2.3777,2979.8,2979.4,0.002]
[1767117997891,2.3777,2979.6,2979.1,2.4655]
[1767118003098,5.73341791,2980.0,2979.3,2.4655]
[1767118003264,2.3777,2979.9,2979.3,2.4655]
[1767118004499,2.3777,2980.5,2979.3,0.7800727]
[1767118004703,2.3777,2980.3,2979.3,0.7800727]
[1767118004890,2.3777,2980.1,2979.3,1.6610727]
[1767118005088,2.3777,2980.1,2979.3,0.881]
[1767118005695,10.0651127,2980.6,2979.0,0.002]
[1767118005696,2.3777,2979.9,2979.0,0.002]
[1767118005862,2.3777,2979.9,2979.3,0.881]
[1767118007106,2.3985,2979.7,2979.3,0.881]
[1767118007274,2.3985,2979.7,2979.2,0.881]
[1767118010407,2.3985,2979.7,2979.1,0.881]
[1767118010705,2.3985,2979.7,2979.1,1.5028227]
[1767118011498,5.75454816,2979.7,2979.1,1.5028227]
[1767118011972,3.35583348,2979.9,2979.1,1.5048227]
[1767118012179,2.3985,2979.6,2979.1,1.5048227]
[1767118012908,2.3985,2979.8,2979.1,1.5048227]
[1767118013316,3.3568485,2979.9,2979.3,5.33522703]
[1767118013317,0.001,2979.9,2979.3,5.33522703]
[1767118013502,0.001,2979.9,2979.4,0.0335638]
[1767118013922,2.3995,2979.9,2979.1,1.5048227]
[1767118014121,2.3985,2979.7,2979.1,0.002]
[1767118014323,2.3985,2979.5,2979.1,0.002]
[1767118015835,2.3985,2979.4,2979.1,0.002]
[1767118016025,2.3985,2979.3,2978.7,0.004]
[1767118016332,2.3985,2979.3,2978.8,0.004]
[1767118020046,2.2724,2979.2,2978.8,0.004]
[1767118021448,2.2724,2979.2,2978.7,0.002]
[1767118022251,2.2724,2979.2,2978.8,0.006]
[1767118022930,0.001,2979.9,2978.8,0.006]
[1767118023253,2.2724,2979.7,2978.8,0.006]
[1767118023551,2.2724,2979.7,2979.0,0.006]
[1767118024123,3.35615518,2979.6,2979.0,0.006]
[1767118024352,2.2724,2979.5,2979.0,0.006]
[1767118028044,2.2724,2979.4,2979.0,0.006]
[1767118028765,3.35633877,2979.5,2979.0,0.006]
[1767118029014,2.2724,2979.7,2979.0,0.006]
[1767118029293,2.2724,2979.6,2979.0,0.006]
[1767118031394,4.23653817,2980.2,2979.0,0.006]
[1767118031395,2.2724,2980.5,2979.6,0.004]
[1767118031698,2.2724,2980.3,2979.4,0.881]
[1767118032193,2.2724,2980.3,2979.5,0.004]
[1767118033708,0.98954005,2980.4,2979.5,0.004]
[1767118033709,2.2724,2980.1,2979.5,0.004]
[1767118033880,2.2724,2980.1,2979.4,0.885]
[1767118034409,2.2724,2980.1,2979.5,0.004]
[1767118035307,2.2724,2980.1,2979.1,5.33523715]
[1767118035308,0.8983359,2980.1,2979.1,0.004]
[1767118035511,5.33523715,2980.0,2978.8,0.006]
[1767118035714,2.2724,2979.4,2978.9,0.004]
[1767118044834,2.3855,2979.9,2979.0,0.003]
[1767118044996,2.3855,2979.9,2979.2,0.003]
[1767118045191,2.3855,2979.9,2979.3,0.003]
[1767118045400,5.74136554,2979.9,2979.3,0.003]
[1767118045723,2.3855,2979.8,2979.3,0.003]
[1767118046586,0.001,2979.9,2979.3,0.003]
[1767118046792,2.3855,2980.1,2979.5,0.002]
[1767118050326,2.3855,2980.1,2979.0,0.53738077]
[1767118050327,2.3855,2980.0,2979.0,0.53738077]
[1767118050530,0.06876846,2979.0,2978.7,0.002]
[1767118050726,2.45426846,2979.0,2978.7,0.002]
[1767118054120,2.3855,2979.8,2978.9,5.33523715]
[1767118054306,2.3855,2979.8,2979.0,1.41452372]
[1767118056427,0.001,2979.9,2979.1,3.35671847]
[1767118056630,2.3865,2979.9,2979.1,3.35671847]
[1767118057707,2.3865,2979.9,2979.0,4.77130719]
[1767118057908,2.3855,2979.8,2979.0,0.53352372]
[1767118058220,2.62415,2979.8,2979.0,0.881]
[1767118058612,2.3855,2979.8,2979.0,0.881]
[1767118058810,2.3855,2979.8,2979.0,6.21623715]
[1767118059011,2.3855,2979.7,2979.0,0.881]
[1767118060251,2.3855,2979.7,2979.0,0.883]
[1767118061136,2.3855,2979.7,2979.0,0.002]
[1767118061326,2.3855,2979.7,2979.1,0.33589169]
[1767118065729,2.3855,2979.7,2979.2,0.03356605]
[1767118066437,0.001,2979.8,2979.2,0.03356605]
[1767118069450,0.001,2979.8,2979.1,3.69260565]
[1767118069625,0.001,2979.8,2979.1,0.33589169]
[1767118069825,0.001,2979.8,2979.2,0.45756789]
[1767118073852,0.001,2979.8,2979.2,0.49113394]
[1767118074059,0.001,2979.8,2979.2,0.45756789]
[1767118075241,0.001,2979.8,2979.3,0.03356493]
[1767118078676,0.001,2979.8,2979.2,5.78976887]
[1767118078977,0.001,2979.8,2979.3,0.94822997]
[1767118079473,0.001,2979.8,2979.3,0.9817949]
[1767118080249,0.001,2979.8,2979.3,0.94822997]
[1767118080770,0.001,2979.8,2979.4,0.0335638]
[1767118081076,0.001,2979.8,2979.2,0.45756789]
[1767118081077,2.4017,2979.7,2979.2,0.45756789]
[1767118081243,2.64197,2979.6,2979.0,0.002]
[1767118081442,2.64197,2979.6,2979.0,5.33420098]
[1767118081443,2.4017,2979.6,2979.0,5.33420098]
[1767118081647,0.001,2979.8,2979.0,5.33420098]
[1767118081847,0.001,2979.8,2979.2,5.33220098]
[1767118082072,0.001,2979.8,2979.3,0.03356493]
[1767118082268,0.001,2979.8,2979.2,5.33220098]
[1767118082584,0.001,2979.8,2979.2,6.20129938]
[1767118083272,2.4027,2979.8,2979.0,0.002]
[1767118083450,2.4027,2979.8,2979.1,0.881]
[1767118084072,2.4027,2979.8,2979.1,6.21320098]
[1767118084977,2.4027,2979.8,2979.1,5.33220098]
[1767118085175,2.4027,2979.8,2979.1,6.21320098]
[1767118085481,2.4027,2979.8,2979.1,7.17040993]
[1767118086187,2.4027,2979.8,2978.7,0.002]
[1767118086188,0.10022718,2977.9,2977.8,0.002]
[1767118086361,5.43242816,2979.2,2977.7,0.002]
[1767118086362,0.10022718,2978.1,2977.7,0.002]
[1767118086548,1.6966189,2977.4,2977.3,0.9107811]
[1767118086875,0.10022718,2977.8,2977.3,0.9107811]
[1767118086876,2.50192718,2977.8,2977.3,0.9107811]
[1767118087048,2.50192718,2977.8,2977.4,0.9108]
[1767118087987,0.10022718,2977.8,2977.4,0.9108]
[1767118088354,0.10022718,2978.1,2977.8,0.8106]
[1767118088546,2.718e-05,2978.1,2977.8,0.8106]
[1767118089174,0.10022718,2978.3,2977.9,0.74398071]
[1767118089456,2.718e-05,2978.1,2977.9,0.7104]
[1767118089771,2.718e-05,2977.7,2977.5,0.6102]
[1767118091077,0.06914307,2977.8,2977.5,0.6102]
[1767118094552,0.06914307,2977.8,2977.5,1.4922]
[1767118094751,4.307e-05,2977.8,2977.5,0.882]
[1767118094979,4.307e-05,2977.8,2977.6,0.4409]
[1767118099410,4.307e-05,2977.8,2977.4,0.4409]
[1767118099411,2.50692718,2977.7,2977.4,0.4409]
[1767118099573,2.50692718,2977.5,2977.3,0.882]
[1767118099774,2.50692718,2977.5,2977.1,1.3249]
[1767118100318,2.4067,2977.5,2977.1,1.3249]
[1767118102481,2.4067,2977.5,2977.1,2.2069]
[1767118102801,2.4067,2977.5,2977.2,1.3229]
[1767118105430,2.4077,2977.5,2977.2,1.3229]
[1767118105926,2.4067,2977.7,2977.2,1.3219]
[1767118106125,2.4067,2977.7,2977.3,1.3219]
[1767118106330,3.45835465,2977.9,2977.3,1.3219]
[1767118106498,5.86505465,2977.9,2977.3,1.3219]
[1767118107029,2.4067,2977.8,2977.3,1.3219]
[1767118107530,3.35821885,2977.8,2977.3,1.61789101]
[1767118108104,2.4067,2977.7,2977.3,1.3219]
[1767118110636,2.4067,2977.7,2977.4,0.882]
[1767118110827,2.4067,2977.7,2977.4,2.2039]
[1767118111028,3.45834628,2977.9,2977.4,2.2039]
[1767118111215,2.4067,2977.8,2977.4,2.2039]
[1767118111528,3.45834628,2977.9,2977.5,1.3219]
[1767118111832,1.3219,2977.5,2977.3,1.3219]
[1767118112007,1.3219,2977.5,2977.4,1.3219]
[1767118112413,2.4067,2978.2,2977.4,1.3219]
[1767118112607,0.001,2977.9,2977.4,0.7536101]
[1767118114237,0.001,2977.9,2977.3,0.882]
[1767118117443,2.4067,2977.7,2977.4,0.882]
[1767118120514,2.4067,2977.7,2977.1,0.886]
[1767118120515,5.76500411,2977.7,2977.1,0.886]
[1767118120817,4.183e-05,2977.4,2977.2,0.8148]
[1767118121353,2.40674183,2977.4,2977.1,0.002]
[1767118121640,2.40674183,2977.4,2976.9,0.002]
[1767118121641,2.50692718,2977.3,2976.9,0.002]
[1767118122963,2.4067,2977.3,2976.9,0.002]
[1767118123671,2.4067,2977.3,2976.7,0.002]
[1767118124029,2.4067,2977.3,2976.7,0.8208]
[1767118126455,2.3184,2977.2,2976.9,0.002]
[1767118126661,2.88612884,2977.2,2976.9,0.002]
[1767118127666,2.3184,2977.2,2976.9,0.002]
[1767118127871,2.3184,2977.2,2976.7,0.002]
[1767118128459,2.3184,2977.2,2976.7,0.8228]
[1767118128756,2.3184,2977.2,2976.5,0.882]
[1767118128959,2.3184,2977.2,2976.6,0.8228]
[1767118130278,2.3184,2977.2,2976.6,0.882]
[1767118130478,2.3184,2977.2,2976.6,1.7048]
[1767118130770,2.3184,2977.2,2976.7,0.8228]
[1767118131567,2.3184,2977.2,2976.2,3.35991346]
[1767118131768,2.3184,2977.2,2976.4,0.8228]
[1767118133140,2.3184,2977.1,2976.3,1.15899135]
[1767118133345,2.3184,2977.1,2976.5,0.884]
[1767118134449,2.3184,2977.1,2976.6,0.8228]
[1767118135069,2.3184,2977.1,2976.8,0.8228]
[1767118135244,2.3184,2977.1,2976.7,0.882]
[1767118135868,2.886115,2977.1,2976.7,0.882]
[1767118136043,2.886115,2977.1,2976.5,0.884]
[1767118136246,2.3184,2977.1,2976.5,0.002]
[1767118136646,2.3184,2977.1,2976.5,1.7068]
[1767118137570,2.3184,2977.1,2976.5,0.002]
[1767118138080,2.3184,2977.1,2976.5,1.7068]
[1767118139562,2.3184,2977.1,2976.5,0.002]
[1767118139765,2.3184,2977.1,2975.6,3.36064026]
[1767118139766,7.62792182,2976.9,2974.7,0.002]
[1767118139963,7.62792182,2976.9,2975.2,1.7128]
[1767118139964,2.285,2976.4,2975.2,1.7128]
[1767118140165,2.285,2976.3,2975.3,1.7128]
[1767118140473,2.285,2976.3,2975.5,1.7128]
[1767118141606,2.285,2976.3,2975.7,1.7128]
[1767118141752,2.285,2976.3,2975.4,8.87507764]
[1767118141951,2.285,2976.2,2975.5,1.7128]
[1767118142973,2.285,2976.2,2975.6,1.7128]
[1767118143178,2.285,2976.2,2975.7,2.22015488]
[1767118143377,0.882,2976.8,2975.7,3.36054209]
[1767118143560,2.285,2976.7,2976.1,1.7128]
[1767118145275,2.285,2976.7,2975.7,1.7128]
[1767118145474,2.285,2976.7,2975.7,2.5948]
[1767118145475,2.285,2976.6,2975.7,2.5948]
[1767118145657,0.882,2976.8,2976.2,1.7128]
[1767118145858,2.285,2977.0,2976.4,1.7128]
[1767118146081,3.35909802,2977.0,2976.4,1.7128]
[1767118146281,2.285,2976.9,2976.4,1.7128]
[1767118146580,2.285,2976.9,2976.1,5.34292182]
[1767118146782,2.285,2976.9,2976.2,1.7128]
[1767118146957,2.285,2976.5,2975.4,1.7128]
[1767118147154,2.285,2976.1,2975.3,1.7148]
[1767118147350,2.285,2976.1,2975.6,0.002]
[1767118147575,2.285,2975.9,2975.3,0.002]
[1767118147876,2.285,2975.7,2975.0,1.7148]
[1767118150278,2.285,2975.6,2974.9,0.002]
[1767118150879,0.06928365,2976.2,2975.0,1.7168]
[1767118151081,2.285,2976.0,2975.2,1.7168]
[1767118151983,2.285,2975.9,2975.2,1.7168]
[1767118153887,3.36033022,2975.9,2975.2,1.7168]
[1767118154072,2.285,2975.8,2975.2,1.7168]
[1767118154685,3.36023677,2976.0,2975.2,1.7168]
[1767118154858,2.285,2975.9,2975.2,1.7168]
[1767118159862,2.285,2975.9,2975.2,2.5988]
[1767118160611,2.285,2975.9,2975.3,1.7168]
[1767118160767,2.84952479,2975.9,2975.3,1.7168]
[1767118161170,3.92485939,2975.9,2975.3,1.7168]
[1767118161367,2.2783,2975.8,2975.3,1.7168]
[1767118162473,2.2783,2975.8,2975.2,0.882]
[1767118162673,2.2783,2975.8,2975.1,2.6008]
[1767118162970,2.2783,2975.7,2974.7,0.002]
[1767118164103,2.2783,2975.5,2974.7,0.002]
[1767118164308,2.2783,2975.5,2974.8,1.7208]
[1767118166602,2.2783,2975.4,2974.8,1.7208]
[1767118168220,2.2783,2975.4,2974.7,0.002]
[1767118168414,2.2783,2975.2,2974.7,0.002]
[1767118168897,2.2783,2975.2,2974.8,0.002]
[1767118170727,2.2783,2975.2,2974.8,1.7228]
[1767118172206,2.2783,2975.1,2974.5,0.002]
[1767118172406,3.36154176,2974.9,2974.3,1.7248]
[1767118172608,2.2783,2974.8,2974.1,1.7288]
[1767118172813,2.2783,2974.6,2974.1,1.7288]
[1767118173184,2.2783,2974.6,2974.2,3.36424076]
[1767118173507,2.2783,2974.6,2974.2,1.7288]
[1767118174491,0.13856547,2974.7,2974.2,1.7288]
[1767118175006,2.41686547,2974.7,2974.2,1.7288]
[1767118175582,0.13856547,2974.7,2974.3,1.7268]
[1767118175808,2.2783,2974.9,2974.3,1.5882]
[1767118176893,2.2783,2974.9,2974.4,1.5882]
[1767118179087,2.2783,2975.2,2974.2,1.5902]
[1767118179311,2.70260448,2975.2,2974.2,3.3642335]
[1767118179512,2.70260448,2975.2,2974.3,1.62182135]
[1767118179823,2.70260448,2975.2,2974.4,1.5882]
[1767118181794,2.70260448,2975.2,2974.4,1.62182022]
[1767118182232,2.70260448,2975.2,2974.4,1.5882]
[1767118182401,2.2783,2975.2,2974.5,1.62181909]
[1767118182798,2.2783,2975.6,2974.5,0.91661909]
[1767118183109,2.2783,2975.5,2974.6,1.5882]
[1767118184592,2.2783,2975.5,2974.8,1.5882]
[1767118184910,2.2783,2975.5,2975.0,1.5882]
[1767118186189,2.3297,2975.7,2975.0,1.5882]
[1767118187508,0.001,2975.9,2975.0,1.5882]
[1767118187509,3.36047965,2975.8,2975.0,1.5882]
[1767118187813,2.3297,2975.7,2975.0,1.5882]
[1767118189387,2.3297,2975.7,2975.1,1.5882]
[1767118192916,2.3297,2975.6,2975.1,1.5882]
[1767118195427,2.3297,2975.5,2975.1,1.5882]
[1767118196825,2.3297,2975.5,2974.9,1.5882]
[1767118198745,0.001,2975.7,2975.0,1.62181344]
[1767118198907,0.001,2975.7,2975.2,1.5882]
[1767118199106,2.3307,2975.7,2975.2,1.5882]
[1767118200365,2.2772,2975.9,2975.2,6.93526198]
[1767118200648,2.2762,2976.3,2975.8,2.4502]
[1767118200804,2.2762,2976.3,2975.3,6.22826603]
[1767118201005,2.2762,2976.3,2975.4,1.4132]
[1767118201205,2.2762,2976.3,2975.5,1.4132]
[1767118201404,2.2762,2976.3,2975.7,1.4132]
[1767118202412,2.2762,2976.1,2975.4,1.4132]
[1767118203227,2.2762,2976.1,2975.3,0.883]
[1767118203544,2.2762,2976.1,2975.4,1.4132]
[1767118203845,2.2762,2976.1,2975.7,1.4132]
[1767118205820,2.2762,2976.1,2975.4,5.34526603]
[1767118206018,2.2762,2976.1,2975.5,1.4132]
[1767118210050,2.53842848,2976.3,2975.5,1.4132]
[1767118210251,3.70580994,2976.5,2975.7,1.4122]
[1767118210423,3.35972512,2976.5,2975.7,1.4122]
[1767118210623,2.2762,2976.4,2975.7,1.4122]
[1767118211039,2.2762,2976.3,2975.7,1.4122]
[1767118211246,2.2762,2975.9,2974.9,1.4122]
[1767118211547,2.2762,2975.8,2975.0,1.4122]
[1767118211758,2.2762,2975.8,2975.1,1.4122]
[1767118214553,2.2762,2975.8,2975.2,1.4122]
[1767118218523,2.2772,2975.8,2975.2,1.4122]
[1767118218937,2.2772,2975.8,2975.3,1.4122]
[1767118220641,2.3518,2976.0,2975.1,1.4112]
[1767118220940,2.92299462,2976.0,2975.1,1.4112]
[1767118221658,2.92299462,2976.0,2975.2,1.4112]
[1767118222230,2.3518,2975.9,2975.2,1.4112]
[1767118223942,2.3518,2975.9,2975.3,1.4112]
[1767118226257,2.3518,2975.9,2975.2,1.4112]
[1767118226445,2.3518,2975.9,2975.4,1.4112]
[1767118227861,2.3528,2975.9,2975.4,1.4112]
[1767118228269,2.3518,2975.8,2975.4,1.4112]
[1767118229960,5.34526603,2975.5,2974.9,1.4112]
[1767118230263,2.3518,2975.4,2974.9,1.4112]
[1767118231366,2.3518,2975.0,2974.6,0.002]
[1767118231936,5.34526603,2975.1,2974.6,0.002]
[1767118231937,2.3518,2974.8,2974.6,0.002]
[1767118232137,2.3518,2974.8,2974.5,0.002]
[1767118233351,2.3518,2974.8,2974.2,0.002]
[1767118233555,2.59645415,2974.8,2974.3,1.4172]
[1767118235492,2.59645415,2974.8,2974.5,0.002]
[1767118235866,2.59645415,2974.8,2974.1,0.002]
[1767118236075,2.59645415,2974.8,2974.1,1.4232]
[1767118236483,2.3518,2974.7,2974.1,0.002]
[1767118236686,2.3518,2974.6,2974.1,0.002]
[1767118238260,2.3518,2974.6,2974.0,0.002]
[1767118238659,2.3518,2974.6,2974.1,1.4232]
[1767118242269,2.3518,2974.8,2974.1,1.4232]
[1767118242590,2.3518,2974.8,2974.2,1.4232]
[1767118242591,2.3528,2974.8,2974.2,1.4232]
[1767118242797,2.3528,2974.8,2974.0,0.002]
[1767118242798,2.3518,2974.7,2974.0,0.002]
[1767118243367,2.3518,2974.6,2974.0,0.002]
[1767118243598,2.3518,2974.5,2974.0,0.002]
[1767118245895,2.3518,2974.4,2974.0,0.002]
[1767118249388,2.3518,2974.4,2974.0,1.4252]
[1767118252102,2.3518,2974.4,2974.0,0.002]
[1767118252681,2.3518,2974.4,2973.6,4.82369822]
[1767118252885,2.3456,2974.3,2973.7,1.4252]
[1767118253099,0.68195727,2974.4,2973.8,1.458827]
[1767118253405,2.3456,2974.5,2973.8,1.458827]
[1767118253905,2.3456,2974.7,2973.8,3.39629488]
[1767118254093,2.3456,2974.7,2973.9,1.4252]
[1767118254771,0.001,2974.8,2973.6,1.4272]
[1767118254772,2.3456,2974.1,2973.6,1.4272]
[1767118254974,3.1146866,2974.0,2973.6,1.4272]
[1767118255202,2.3456,2974.3,2973.6,1.4272]
[1767118255996,2.3456,2974.2,2973.6,1.4272]
[1767118257905,2.3456,2974.2,2973.9,0.002]
[1767118258272,2.3456,2974.2,2973.6,1.4272]
[1767118260186,2.3089,2974.1,2973.6,1.4272]
[1767118260385,2.3089,2973.9,2973.6,1.4272]
[1767118260596,2.3089,2973.9,2973.6,0.002]
[1767118260976,2.3089,2973.6,2972.9,1.4332]
[1767118261177,2.3089,2973.6,2973.0,1.4332]
[1767118261378,2.3089,2973.9,2973.2,1.4332]
[1767118261574,2.68480151,2973.9,2973.2,1.4332]
[1767118261777,2.68480151,2973.9,2973.3,1.4332]
[1767118262012,0.883,2974.0,2973.4,1.4332]
[1767118262174,0.883,2974.0,2973.6,1.4332]
[1767118262379,2.3089,2974.1,2973.6,1.4332]
[1767118262988,2.3089,2974.3,2973.6,1.4332]
[1767118264186,2.3089,2974.2,2973.6,1.4332]
[1767118266487,0.001,2974.4,2973.7,1.46682814]
[1767118266687,0.001,2974.4,2973.8,1.4332]
[1767118267318,2.3089,2974.5,2973.7,1.05189251]
[1767118267623,2.3089,2974.5,2973.8,1.4322]
[1767118268486,2.3089,2974.5,2973.9,1.4322]
[1767118268812,2.3089,2974.7,2973.9,1.4322]
[1767118269015,2.3089,2974.6,2973.9,1.4322]
[1767118269193,2.3099,2974.8,2973.9,1.4322]
[1767118269615,0.001,2974.8,2973.9,1.4322]
[1767118270390,2.3099,2974.8,2973.9,1.4322]
[1767118271016,2.3099,2974.8,2974.0,1.4322]
[1767118271324,2.3099,2974.8,2974.1,1.4322]
[1767118271725,2.3089,2974.7,2974.1,1.4322]
[1767118272088,0.001,2974.8,2974.1,1.4322]
[1767118275018,2.3099,2974.8,2974.1,1.4322]
[1767118276555,2.4861,2975.2,2974.2,1.4312]
[1767118276788,2.4861,2975.2,2974.3,1.4312]
[1767118276789,2.96764101,2975.2,2974.3,1.4312]
[1767118276925,2.4861,2975.1,2974.3,1.4312]
[1767118277414,2.4861,2975.1,2974.4,1.4312]
[1767118277829,0.883,2975.3,2974.4,1.4312]
[1767118278030,0.883,2975.3,2974.6,1.4312]
[1767118279719,0.883,2975.3,2974.7,1.4312]
[1767118280869,2.4871,2975.6,2974.9,0.5482]
[1767118281764,3.36169324,2975.6,2974.9,0.5482]
[1767118281967,0.001,2975.6,2974.9,0.5482]
[1767118282267,3.36060354,2975.7,2974.9,0.5472]
[1767118282572,2.4861,2975.6,2974.9,0.5472]
[1767118282975,0.001,2975.3,2975.0,0.5472]
[1767118283129,0.001,2975.3,2974.7,0.5472]
[1767118283337,0.001,2975.3,2974.8,1.27389688]
[1767118283529,2.4871,2975.3,2974.8,1.27389688]
[1767118283735,2.4871,2975.3,2974.9,0.5472]
[1767118285046,0.001,2975.3,2974.9,0.5472]
[1767118285272,2.4871,2975.8,2975.0,0.5462]
[1767118285540,0.001,2975.8,2975.1,0.5462]
[1767118285745,2.4871,2975.8,2975.1,0.5462]
[1767118289165,3.36058258,2975.7,2975.1,0.5462]
[1767118289466,2.4861,2975.4,2974.6,0.5462]
[1767118289666,5.35292999,2975.5,2974.6,0.5462]
[1767118289667,2.4861,2975.0,2974.6,0.5462]
[1767118292073,2.4861,2975.0,2974.3,0.5462]
[1767118292289,2.4861,2974.9,2974.3,0.5462]
[1767118292451,2.4861,2974.9,2974.1,1.4292]
[1767118292657,2.4861,2974.7,2974.2,0.5462]
[1767118297551,2.4861,2974.7,2974.0,0.5482]
[1767118297552,2.4861,2974.6,2974.0,0.5482]
[1767118298162,2.4861,2974.6,2974.1,0.002]
[1767118298462,2.4861,2974.5,2974.1,0.002]
[1767118301773,2.4861,2974.5,2974.1,0.5482]
[1767118303080,3.07084635,2974.8,2974.1,0.5482]
[1767118303288,2.4861,2974.7,2974.1,0.5482]
[1767118304162,2.4861,2974.7,2974.1,0.002]
[1767118304957,2.4861,2974.7,2974.2,0.5462]
[1767118306806,2.2593,2974.6,2974.2,0.5462]
[1767118309188,2.2593,2974.6,2974.1,0.002]
[1767118309861,2.2593,2974.6,2974.1,0.5482]
[1767118310185,3.36180174,2974.6,2974.1,0.5482]
[1767118310373,2.2593,2974.5,2974.1,0.002]
[1767118311493,2.2593,2974.5,2974.0,0.002]
[1767118311663,2.2593,2974.4,2973.7,1.4332]
[1767118312600,2.2593,2974.4,2973.5,0.002]
[1767118312601,2.2593,2974.3,2973.5,1.4352]
[1767118312800,2.2593,2974.1,2973.5,1.4352]
[1767118313172,2.2593,2974.1,2973.5,0.5522]
[1767118315192,2.2593,2974.1,2973.5,0.002]
[1767118316580,2.2603,2974.5,2973.6,0.5502]
[1767118316782,2.2593,2974.4,2973.7,0.883]
[1767118317201,2.2593,2974.4,2973.7,0.5502]
[1767118318577,0.001,2974.5,2973.7,0.5502]
[1767118318776,0.001,2974.5,2973.8,0.5502]
[1767118319181,2.3367,2974.4,2973.8,0.5502]
[1767118319699,0.001,2974.5,2973.9,0.5502]
[1767118320074,2.3377,2974.5,2973.9,0.5502]
[1767118323910,2.3377,2974.5,2973.9,1.4332]
[1767118324211,2.3367,2975.0,2974.0,0.5492]
[1767118324408,2.90649429,2975.0,2974.1,0.5492]
[1767118326112,6.26789785,2975.0,2974.1,0.5492]
[1767118326285,2.3367,2974.9,2974.1,0.5492]
[1767118328496,2.3367,2975.0,2974.3,5.35104321]
[1767118328696,0.33715826,2975.6,2974.8,0.5492]
[1767118328697,2.3367,2975.5,2974.8,0.5492]
[1767118330598,2.3367,2975.4,2974.8,0.5492]
[1767118330998,2.3367,2975.4,2974.5,3.36186196]
[1767118331410,2.3367,2974.8,2973.9,0.002]
[1767118331615,0.10022718,2974.9,2973.9,0.5512]
[1767118331616,2.3367,2974.5,2973.9,0.5512]
[1767118331818,2.3367,2974.5,2974.0,0.5512]
[1767118332687,2.3367,2974.4,2974.0,0.002]
[1767118332914,2.3367,2974.1,2973.5,0.002]
[1767118333523,2.75332404,2974.1,2973.5,0.5552]
[1767118335218,3.77907441,2974.1,2973.5,0.5552]
[1767118335416,2.3367,2974.0,2973.5,0.5552]
[1767118339309,2.3369,2973.9,2973.5,0.5552]
[1767118339505,0.41662404,2974.1,2973.5,0.5552]
[1767118339506,2.75352404,2974.1,2973.5,0.5552]
[1767118340110,3.77904562,2974.1,2973.5,0.5552]
[1767118340320,2.3369,2974.0,2973.5,0.5552]
[1767118340522,2.3369,2974.0,2973.5,0.002]
[1767118340825,2.3369,2974.0,2973.5,0.5552]
[1767118345035,2.3369,2973.9,2973.5,0.5552]
[1767118345195,2.3369,2973.8,2973.5,0.5552]
[1767118345527,2.3369,2973.8,2973.5,0.002]
[1767118347011,5.69960713,2973.8,2973.5,0.002]
[1767118347503,2.3369,2973.8,2973.5,0.002]
[1767118347832,2.3369,2973.7,2973.5,0.002]
[1767118348420,2.3369,2973.6,2973.3,0.5532]
[1767118348624,2.3369,2973.5,2973.1,0.002]
[1767118349717,2.3369,2973.1,2972.8,0.885]
[1767118349944,2.3369,2973.1,2972.8,0.002]
[1767118350153,2.3369,2973.1,2972.6,1.4358]
[1767118350516,2.3369,2973.1,2972.7,0.5568]
[1767118353356,2.3369,2973.4,2972.7,0.5568]
[1767118353558,2.3369,2973.4,2972.9,0.5548]
[1767118355561,2.3369,2973.4,2973.0,0.5548]
[1767118359952,3.36316215,2973.4,2973.0,0.5548]
[1767118360250,2.3369,2973.3,2972.9,0.5548]
[1767118360633,2.3369,2973.3,2972.9,1.4378]
[1767118360831,2.3369,2973.3,2973.0,0.5548]
[1767118363064,5.70019118,2973.3,2973.0,0.5548]
[1767118363264,2.3369,2973.2,2972.9,0.883]
[1767118363667,2.3369,2973.2,2972.9,1.4378]
[1767118364570,2.3369,2973.2,2972.9,0.5548]
[1767118364861,2.3369,2973.2,2972.9,1.4378]
[1767118365961,2.3369,2973.2,2972.9,0.5548]
[1767118366259,2.3231,2973.1,2972.7,0.002]
[1767118366473,2.3231,2973.1,2972.6,0.885]
[1767118366474,2.3231,2972.9,2972.6,0.002]
[1767118367238,2.3231,2972.8,2972.4,0.885]
[1767118367462,2.3231,2972.8,2972.4,0.002]
[1767118368836,2.3231,2972.7,2972.3,0.002]
[1767118369032,2.3231,2972.6,2972.2,0.885]
[1767118369232,2.3231,2972.6,2972.2,0.002]
[1767118369661,2.3231,2972.4,2972.0,0.002]
[1767118370270,2.3231,2972.4,2971.4,0.4892]
[1767118370436,2.3231,2972.4,2971.7,0.4892]
[1767118370437,2.3231,2972.3,2971.7,0.4892]
[1767118371982,2.3231,2972.3,2971.8,0.52284963]
[1767118372475,2.3231,2972.7,2971.8,0.52284963]
[1767118372877,2.3231,2972.7,2971.8,0.4892]
[1767118374181,2.3231,2972.7,2971.8,3.85415532]
[1767118374363,5.35104321,2973.1,2972.4,0.4892]
[1767118374364,2.3231,2973.1,2972.4,0.4892]
[1767118374562,2.3231,2973.1,2972.5,0.4892]